bitfinex/quotes_SOLUSD_20220228
["timestamp","ask_amount","ask_price","bid_price","bid_amount"]
[1646040436259,1.57130783,90.045,89.962,6.0]
[1646040438762,23.6328,90.047,89.962,8.65741885]
[1646040439164,23.6328,90.047,89.963,67.03]
[1646040439362,23.6328,90.047,89.965,67.03]
[1646040439562,23.6328,90.047,89.967,67.03]
[1646040439867,23.6328,90.047,89.968,8.36387525]
[1646040440062,23.6328,90.047,89.968,11.11066446]
[1646040440665,23.6328,90.047,89.968,8.36387525]
[1646040440963,23.6328,90.047,89.963,2.92582978]
[1646040441162,23.6328,90.047,89.966,2.91716474]
[1646040441363,23.6328,90.047,89.968,2.8994012]
[1646040441762,23.6328,90.047,89.969,6.0]
[1646040442163,1.51005033,90.046,89.961,56.53194945]
[1646040442363,1.51005033,90.046,89.962,6.0]
[1646040442763,23.6328,90.047,89.962,9.01192701]
[1646040444965,1.41631939,90.046,89.962,9.01192701]
[1646040446268,23.6328,90.047,89.963,67.03]
[1646040446464,23.6328,90.047,89.965,67.03]
[1646040446665,23.6328,90.047,89.967,67.03]
[1646040446864,23.6328,90.047,89.968,8.9864252]
[1646040448068,23.6328,90.047,89.968,6.0]
[1646040448368,23.6328,90.047,89.963,6.0]
[1646040448567,23.6328,90.047,89.964,67.03]
[1646040448870,23.6328,90.047,89.965,6.0]
[1646040449269,1.39541743,90.046,89.965,6.0]
[1646040449469,1.39541743,90.046,89.962,6.0]
[1646040449888,23.6328,90.047,89.963,2.74678921]
[1646040450090,23.6328,90.047,89.964,6.0]
[1646040450589,23.6328,90.047,89.963,6.0]
[1646040453190,25.46307738,90.047,89.963,6.0]
[1646040454893,113.56526762,90.046,89.963,6.0]
[1646040455092,1.64148448,90.045,89.962,6.0]
[1646040455695,4.316,90.044,89.962,6.0]
[1646040456094,15.99,90.04,89.962,6.0]
[1646040456295,1.64746666,90.039,89.962,6.0]
[1646040461298,23.6328,90.047,89.962,6.0]
[1646040461499,1.86502529,90.046,89.962,6.0]
[1646040462999,113.56502529,90.046,89.962,6.0]
[1646040463200,1.86502529,90.046,89.962,6.0]
[1646040463400,113.56502529,90.046,89.962,6.0]
[1646040463600,1.47253506,90.045,89.962,6.0]
[1646040465801,1.47253506,90.045,89.958,24.5104]
[1646040466002,4.422,90.044,89.931,16.5034]
[1646040466202,113.5005302,90.029,89.932,23.9831]
[1646040466401,13.0,90.0,89.935,17.04653206]
[1646040466807,13.0,90.0,89.936,45.54395226]
[1646040468003,13.0,90.0,89.937,17.04918181]
[1646040468804,13.0,90.0,89.938,6.0]
[1646040469005,13.0,90.0,89.937,6.0]
[1646040469206,13.0,90.0,89.936,45.54395226]
[1646040469607,13.0,90.0,89.937,17.04672604]
[1646040469810,13.0,90.0,89.937,84.07672604]
[1646040470007,13.0,90.0,89.938,2.84801692]
[1646040470207,13.0,90.0,89.938,5.59480613]
[1646040470409,13.0,90.0,89.94,2.55982206]
[1646040470709,13.0,90.0,89.943,2.93439172]
[1646040471008,13.0,90.0,89.945,67.03]
[1646040471208,13.0,90.0,89.947,67.03]
[1646040471407,13.0,90.0,89.948,3.02461616]
[1646040471807,13.0,90.0,89.95,67.03]
[1646040472111,13.0,90.0,89.952,67.03]
[1646040472308,13.0,90.0,89.953,3.06600592]
[1646040472914,13.0,90.0,89.955,67.03]
[1646040473118,13.0,90.0,89.957,67.03]
[1646040473514,13.0,90.0,89.953,3.06600592]
[1646040473715,13.0,90.0,89.951,49.1006801]
[1646040476718,13.0,90.0,89.952,67.03]
[1646040476915,13.0,90.0,89.953,2.3766236]
[1646040477419,13.0,90.0,89.955,67.03]
[1646040477815,13.0,90.0,89.957,67.03]
[1646040478919,13.0,90.0,89.953,2.3766236]
[1646040478920,13.0,90.0,89.958,6.0]
[1646040479221,13.0,90.0,89.951,49.1006801]
[1646040481823,13.0,90.0,89.952,6.0]
[1646040482923,13.0,90.0,89.951,49.1006801]
[1646040485140,1.84094688,89.999,89.951,49.1006801]
[1646040488044,1.3609807,89.998,89.896,23.3976]
[1646040488244,1.3609807,89.998,89.885,24.8728]
[1646040488245,1.83186992,89.996,89.885,24.8728]
[1646040488447,4.446,89.995,89.888,11.61714655]
[1646040488643,1.83186992,89.996,89.888,11.61714655]
[1646040488846,4.446,89.995,89.889,23.3976]
[1646040489043,4.446,89.995,89.931,45.13116329]
[1646040489344,4.446,89.995,89.889,23.3976]
[1646040489545,111.7,89.993,89.89,6.0]
[1646040489844,1.49336914,89.978,89.89,23.05730272]
[1646040490044,1.58227494,89.976,89.89,6.0]
[1646040490448,4.447,89.975,89.891,48.09883671]
[1646040490644,15.99,89.97,89.892,6.0]
[1646040490846,1.46244212,89.969,89.892,6.0]
[1646040492345,1.79995856,89.976,89.892,6.0]
[1646040492548,1.79995856,89.976,89.893,24.3418]
[1646040495752,22.9146,89.977,89.895,67.03]
[1646040496056,22.9146,89.977,89.898,2.60678994]
[1646040496353,22.9146,89.977,89.901,2.28991466]
[1646040496552,22.9146,89.977,89.904,2.80164832]
[1646040496757,22.9146,89.977,89.907,113.39031845]
[1646040496953,22.9146,89.977,89.908,6.0]
[1646040497353,1.45733709,89.976,89.907,46.36031845]
[1646040498556,113.15733709,89.976,89.907,46.36031845]
[1646040498755,1.55879654,89.975,89.907,46.36031845]
[1646040498954,1.55879654,89.975,89.892,16.8239]
[1646040500056,1.55879654,89.975,89.894,49.67086938]
[1646040500459,117.70579654,89.975,89.894,49.67086938]
[1646040500661,1.72819516,89.974,89.894,49.67086938]
[1646040506566,15.99,89.97,89.894,49.67086938]
[1646040506764,1.63211452,89.969,89.894,49.67086938]
[1646040507166,113.33211452,89.969,89.894,49.67086938]
[1646040507366,1.46888228,89.968,89.894,49.67086938]
[1646040512874,1.46888228,89.968,89.895,6.0]
[1646040513675,1.46888228,89.968,89.894,49.67086938]
[1646040514478,1.46888228,89.968,89.895,6.0]
[1646040514879,1.70612482,89.976,89.895,6.0]
[1646040515077,1.70612482,89.976,89.894,49.67086938]
[1646040515277,1.70612482,89.976,89.895,6.0]
[1646040515681,22.9146,89.977,89.897,3.04313196]
[1646040515880,22.9146,89.977,89.9,3.1025408]
[1646040516083,22.9146,89.977,89.905,67.03]
[1646040516380,22.9146,89.977,89.907,67.03]
[1646040516579,22.9146,89.977,89.909,67.03]
[1646040516777,22.9146,89.977,89.908,6.0]
[1646040516778,13.0,90.0,89.913,67.03]
[1646040516980,13.0,90.0,89.919,67.03]
[1646040517181,13.0,90.0,89.921,67.03]
[1646040517402,13.0,90.0,89.92,26.62643448]
[1646040517403,13.0,90.0,89.924,43.72273752]
[1646040517602,13.0,90.0,89.925,73.03]
[1646040517803,13.0,90.0,89.926,2.67890128]
[1646040518004,13.0,90.0,89.928,67.03]
[1646040518202,13.0,90.0,89.931,2.65719408]
[1646040518405,13.0,90.0,89.933,67.03]
[1646040518603,13.0,90.0,89.936,3.05475774]
[1646040519005,13.0,90.0,89.938,58.60624966]
[1646040520707,13.0,90.0,89.94,2.7753412]
[1646040520909,13.0,90.0,89.942,67.03]
[1646040521108,13.0,90.0,89.943,2.73357721]
[1646040522108,13.0,90.0,89.939,67.03]
[1646040524113,13.0,90.0,89.938,58.60624966]
[1646040528415,13.0,90.0,89.939,6.0]
[1646040536420,13.0,90.0,89.938,58.60624966]
[1646040538629,1.66733368,89.999,89.938,58.60624966]
[1646040539031,22.5345,89.998,89.938,58.60624966]
[1646040539430,1.45668418,89.997,89.938,58.60624966]
[1646040542033,1.45668418,89.997,89.92,24.3312]
[1646040542833,1.45668418,89.997,89.921,6.0]
[1646040543034,1.45668418,89.997,89.922,44.15343534]
[1646040545238,1.45668418,89.997,89.923,6.0]
[1646040545437,1.45668418,89.997,89.922,44.15343534]
[1646040547336,22.5345,89.998,89.923,75.77678921]
[1646040547937,22.5345,89.998,89.925,178.73]
[1646040548139,13.0,90.0,89.935,178.73]
[1646040548338,13.0,90.0,89.937,67.03]
[1646040548538,13.0,90.0,89.939,67.03]
[1646040548738,13.0,90.0,89.941,67.03]
[1646040548939,13.0,90.0,89.943,67.03]
[1646040549142,13.0,90.0,89.945,67.03]
[1646040549341,13.0,90.0,89.942,2.74678921]
[1646040549540,13.0,90.0,89.937,67.03]
[1646040549741,13.0,90.0,89.938,6.0]
[1646040551761,13.0,90.0,89.933,67.03]
[1646040551958,13.0,90.0,89.932,6.0]
[1646040551959,13.0,90.0,89.935,67.03]
[1646040552158,13.0,90.0,89.937,67.03]
[1646040552359,13.0,90.0,89.938,6.0]
[1646040553260,13.0,90.0,89.933,67.03]
[1646040553461,13.0,90.0,89.935,67.03]
[1646040553663,13.0,90.0,89.937,67.03]
[1646040553864,13.0,90.0,89.938,6.0]
[1646040555062,13.0,90.0,89.939,67.03]
[1646040555262,13.0,90.0,89.94,6.0]
[1646040556265,13.0,90.0,89.937,73.03]
[1646040557267,13.0,90.0,89.938,2.74678921]
[1646040557470,13.0,90.0,89.94,67.03]
[1646040557668,13.0,90.0,89.943,3.00758658]
[1646040557867,13.0,90.0,89.945,67.03]
[1646040558068,13.0,90.0,89.947,67.03]
[1646040558269,13.0,90.0,89.949,67.03]
[1646040558469,13.0,90.0,89.951,67.03]
[1646040558668,13.0,90.0,89.953,67.03]
[1646040558868,13.0,90.0,89.955,67.03]
[1646040559069,13.0,90.0,89.954,6.0]
[1646040559070,13.0,90.0,89.957,67.03]
[1646040559269,13.0,90.0,89.958,6.0]
[1646040559670,13.0,90.0,89.959,67.03]
[1646040559872,13.0,90.0,89.961,67.03]
[1646040560071,13.0,90.0,89.963,67.03]
[1646040560371,13.0,90.0,89.965,67.03]
[1646040560573,13.0,90.0,89.964,6.0]
[1646040560574,13.0,90.0,89.967,67.03]
[1646040560774,13.0,90.0,89.968,6.0]
[1646040561376,13.0,90.0,89.967,67.03]
[1646040562276,13.0,90.0,89.968,2.74678921]
[1646040562477,13.0,90.0,89.97,67.03]
[1646040562777,13.0,90.0,89.972,67.03]
[1646040562976,13.0,90.0,89.974,67.03]
[1646040563177,13.0,90.0,89.977,111.1296848]
[1646040563376,13.0,90.0,89.978,6.0]
[1646040563585,13.0,90.0,89.977,44.0996848]
[1646040576295,13.0,90.0,89.977,111.1296848]
[1646040576496,13.0,90.0,89.977,44.0996848]
[1646040578914,13.0,90.0,89.956,4.445]
[1646040579117,13.0,90.0,89.948,4.445]
[1646040579315,13.0,90.0,89.947,67.03]
[1646040579718,13.0,90.0,89.948,4.445]
[1646040580015,13.0,90.0,89.95,58.87788186]
[1646040580415,13.0,90.0,89.96,15.99]
[1646040580616,13.0,90.0,89.961,4.445]
[1646040580817,13.0,90.0,89.952,4.445]
[1646040581017,13.0,90.0,89.954,178.73]
[1646040581218,5.934,90.0,89.956,178.73]
[1646040581516,23.2892,90.026,89.961,178.73]
[1646040581716,23.2892,90.026,89.964,58.76070859]
[1646040581917,23.2892,90.026,89.966,67.03]
[1646040582117,23.2892,90.026,89.968,67.03]
[1646040582419,23.2892,90.026,89.97,83.02]
[1646040582616,23.2892,90.026,89.972,67.03]
[1646040582817,23.2892,90.026,89.974,67.03]
[1646040583018,23.2892,90.026,89.976,67.03]
[1646040583217,23.2892,90.026,89.975,10.444]
[1646040583218,23.2892,90.026,89.978,45.83509321]
[1646040583417,23.2892,90.026,89.979,10.444]
[1646040583618,4.445,90.062,89.979,4.444]
[1646040583817,111.7,90.074,89.979,4.444]
[1646040583818,22.7251,90.058,89.979,4.444]
[1646040584019,1.53666962,90.057,89.979,4.444]
[1646040584420,1.53666962,90.057,89.98,8.74678921]
[1646040584719,1.53666962,90.057,89.981,4.442]
[1646040584923,1.53666962,90.057,89.983,67.03]
[1646040585119,1.590593,90.077,89.991,178.73]
[1646040585320,1.590593,90.077,89.993,178.73]
[1646040585520,1.590593,90.077,89.996,2.55901136]
[1646040585720,1.590593,90.077,90.011,178.73]
[1646040585920,1.590593,90.077,90.021,67.03]
[1646040586120,1.590593,90.077,90.023,67.03]
[1646040586321,1.590593,90.077,90.025,67.03]
[1646040586521,1.590593,90.077,90.024,6.0]
[1646040586922,1.590593,90.077,90.019,6.0]
[1646040587424,1.590593,90.077,90.019,97.28747673]
[1646040587625,1.590593,90.077,90.021,67.03]
[1646040587821,1.590593,90.077,90.023,67.03]
[1646040588023,1.590593,90.077,90.024,10.441]
[1646040588223,1.590593,90.077,90.025,67.03]
[1646040588522,1.590593,90.077,90.028,46.81370875]
[1646040588723,1.590593,90.077,90.029,10.441]
[1646040588922,1.590593,90.077,90.03,67.03]
[1646040589124,1.590593,90.077,90.032,67.03]
[1646040589323,1.590593,90.077,90.034,67.03]
[1646040589523,1.590593,90.077,90.036,67.03]
[1646040589723,1.590593,90.077,90.037,77.471]
[1646040589925,1.590593,90.077,90.037,73.03]
[1646040590324,1.590593,90.077,90.037,6.0]
[1646040590524,1.590593,90.077,90.038,4.441]
[1646040590724,1.590593,90.077,90.039,6.0]
[1646040591324,1.590593,90.077,90.036,6.0]
[1646040591626,1.590593,90.077,90.037,71.471]
[1646040591825,1.590593,90.077,90.038,6.0]
[1646040592026,1.590593,90.077,90.039,4.441]
[1646040592225,1.590593,90.077,90.04,6.0]
[1646040592427,1.590593,90.077,90.035,67.03]
[1646040592625,1.590593,90.077,90.036,10.441]
[1646040594328,1.590593,90.077,90.037,67.03]
[1646040594527,1.590593,90.077,90.038,6.0]
[1646040595329,24.0277,90.104,90.042,60.4249315]
[1646040595530,24.0277,90.104,90.043,73.03]
[1646040595728,24.0277,90.104,90.043,75.77678921]
[1646040596131,24.0277,90.104,90.043,97.04911002]
[1646040596332,24.0277,90.104,90.044,2.74678921]
[1646040596531,24.0277,90.104,90.046,67.03]
[1646040596731,24.0277,90.104,90.044,2.74678921]
[1646040596732,24.0277,90.104,90.047,73.03]
[1646040597033,24.0277,90.104,90.044,2.74678921]
[1646040597233,1.84337896,90.103,90.042,60.4249315]
[1646040597435,1.84337896,90.103,90.043,6.0]
[1646040600437,24.0277,90.104,90.044,67.03]
[1646040600635,24.0277,90.104,90.046,67.03]
[1646040600836,24.0277,90.104,90.047,73.03]
[1646040602337,24.0277,90.104,90.047,8.74678921]
[1646040602541,24.0277,90.104,90.047,73.03]
[1646040603338,24.0277,90.104,90.047,75.77678921]
[1646040605039,24.0277,90.104,90.049,67.03]
[1646040605241,24.0277,90.104,90.051,67.03]
[1646040605438,24.0277,90.104,90.053,67.03]
[1646040605645,24.0277,90.104,90.055,67.03]
[1646040605840,24.0277,90.104,90.057,67.03]
[1646040606140,24.0277,90.104,90.058,6.0]
[1646040606341,24.0277,90.104,90.056,50.33644277]
[1646040607846,24.0277,90.104,90.037,2.74678921]
[1646040608045,1.6484217,90.103,90.034,19.5276722]
[1646040608844,1.6484217,90.103,90.042,59.15553542]
[1646040611747,1.6484217,90.103,90.022,24.9135]
[1646040611947,1.6484217,90.103,90.021,19.44230078]
[1646040612151,4.433,90.102,89.998,11.59853629]
[1646040612356,4.433,90.102,90.0,16.4373]
[1646040612751,4.433,90.102,90.002,47.9556793]
[1646040613150,15.99,90.1,90.002,47.9556793]
[1646040613450,6.09235206,90.099,90.002,47.9556793]
[1646040614653,6.09235206,90.099,90.003,6.0]
[1646040614852,111.7,90.098,90.002,47.9556793]
[1646040615051,111.7,90.096,90.002,47.9556793]
[1646040615250,111.7,90.094,90.002,47.9556793]
[1646040615453,15.99,90.1,90.002,47.9556793]
[1646040615454,111.7,90.092,90.002,47.9556793]
[1646040615653,127.69,90.09,90.002,47.9556793]
[1646040615853,111.7,90.088,90.002,47.9556793]
[1646040616056,111.7,90.086,89.999,4.442]
[1646040616354,111.7,90.084,89.999,4.442]
[1646040616554,111.7,90.082,89.998,16.04053629]
[1646040616754,46.1001,90.091,89.971,4.442]
[1646040616755,127.69,90.08,89.971,4.442]
[1646040616954,1.4358062,90.077,89.972,58.58881623]
[1646040617254,1.4358062,90.077,89.979,11.60760171]
[1646040617255,4.442,90.076,89.979,11.60760171]
[1646040617554,4.74494927,90.076,89.972,58.58881623]
[1646040617756,4.442,90.076,89.972,58.58881623]
[1646040618155,0.30294927,90.075,89.969,11.6087522]
[1646040618355,1.4241202,90.073,89.969,11.6087522]
[1646040618573,111.7,90.059,89.969,11.6087522]
[1646040618773,15.99,90.06,89.969,11.6087522]
[1646040618774,111.7,90.057,89.969,11.6087522]
[1646040618974,111.7,90.055,89.951,112.6]
[1646040619177,1.40380714,90.054,89.952,45.20312363]
[1646040619375,48.1667,90.058,89.952,45.20312363]
[1646040619376,111.7,90.049,89.952,45.20312363]
[1646040619576,1.6417921,90.048,89.953,4.444]
[1646040619979,4.377,90.047,89.952,45.20312363]
[1646040620381,111.7,90.045,89.952,45.20312363]
[1646040620681,23.2154,90.046,89.952,45.20312363]
[1646040620682,111.7,90.043,89.952,45.20312363]
[1646040620878,111.7,90.041,89.952,45.20312363]
[1646040621079,111.7,90.039,89.952,45.20312363]
[1646040621279,111.7,90.037,89.952,45.20312363]
[1646040621478,111.7,90.035,89.952,45.20312363]
[1646040621678,111.7,90.033,89.952,45.20312363]
[1646040621878,111.7,90.031,89.952,45.20312363]
[1646040622180,1.50148012,90.03,89.952,45.20312363]
[1646040622879,4.444,90.029,89.952,45.20312363]
[1646040623178,1.80393517,90.027,89.952,45.20312363]
[1646040623381,4.444,90.026,89.952,45.20312363]
[1646040624181,111.7,90.025,89.952,45.20312363]
[1646040624379,5.85272562,90.024,89.952,45.20312363]
[1646040624579,4.432,90.024,89.952,45.20312363]
[1646040624780,1.46146163,90.022,89.952,45.20312363]
[1646040624980,4.408,90.021,89.952,45.20312363]
[1646040625480,1.46146163,90.022,89.952,45.20312363]
[1646040625680,5.84546163,90.022,89.952,45.20312363]
[1646040626885,5.84546163,90.022,89.926,4.445]
[1646040627083,5.84546163,90.022,89.931,11.61301099]
[1646040627783,5.84546163,90.022,89.932,60.83411361]
[1646040627983,5.84546163,90.022,89.933,4.445]
[1646040628182,1.46146163,90.022,89.933,4.445]
[1646040629887,5.90646163,90.022,89.934,6.0]
[1646040630089,5.90646163,90.022,89.935,4.445]
[1646040630289,5.90646163,90.022,89.937,67.03]
[1646040630486,1.46146163,90.022,89.938,10.445]
[1646040630687,4.445,90.021,89.933,4.445]
[1646040631086,4.445,90.021,89.932,60.83411361]
[1646040631087,111.7,90.02,89.932,60.83411361]
[1646040631287,4.445,90.019,89.932,60.83411361]
[1646040631486,1.39193095,90.019,89.932,60.83411361]
[1646040631688,4.445,90.018,89.932,60.83411361]
[1646040633592,1.39193095,90.019,89.933,4.445]
[1646040633793,1.39193095,90.019,89.934,6.0]
[1646040633995,1.39193095,90.019,89.935,4.445]
[1646040634594,1.39193095,90.019,89.936,6.0]
[1646040634795,1.39193095,90.019,89.937,4.445]
[1646040634995,1.39193095,90.019,89.938,6.0]
[1646040635194,1.39193095,90.019,89.939,4.445]
[1646040635494,0.89193095,90.019,89.933,4.445]
[1646040635694,23.3751,90.023,89.941,67.03]
[1646040635695,4.398,90.022,89.941,67.03]
[1646040635898,23.3751,90.023,89.946,111.7]
[1646040636095,23.1108,90.028,89.957,67.03]
[1646040636298,24.5874,90.044,89.962,111.7]
[1646040636498,24.5874,90.044,89.966,2.34792351]
[1646040636698,24.5874,90.044,89.967,4.444]
[1646040636896,24.5874,90.044,89.971,67.03]
[1646040637096,24.5874,90.044,89.973,67.03]
[1646040637297,24.5874,90.044,89.975,67.03]
[1646040637498,24.5874,90.044,89.977,67.03]
[1646040637796,24.5874,90.044,89.98,2.69295776]
[1646040637996,24.5874,90.044,89.983,2.7150373]
[1646040638196,24.2953,90.063,89.987,67.03]
[1646040638399,24.2953,90.063,89.986,46.51723956]
[1646040638400,24.2953,90.063,89.99,3.11280956]
[1646040638697,24.2953,90.063,89.992,67.03]
[1646040638895,24.2953,90.063,89.994,67.03]
[1646040639102,24.2953,90.063,89.993,4.442]
[1646040639295,117.66146614,90.062,89.993,4.442]
[1646040639496,1.80369466,90.061,89.993,4.442]
[1646040639696,116.142,90.06,89.993,4.442]
[1646040639897,24.4923,90.061,89.993,4.442]
[1646040642200,1.86351259,90.06,89.994,2.74678921]
[1646040642400,1.86351259,90.06,89.993,4.442]
[1646040644302,24.4923,90.061,89.993,4.442]
[1646040644504,24.4923,90.061,89.994,2.74678921]
[1646040644701,1.48901426,90.084,89.994,2.74678921]
[1646040644903,24.5343,90.088,89.996,2.59880416]
[1646040645102,24.5343,90.088,89.998,67.03]
[1646040645301,24.5343,90.088,90.002,67.03]
[1646040645502,24.5343,90.088,90.005,2.73983634]
[1646040645702,24.5343,90.088,90.003,6.0]
[1646040645703,24.5343,90.088,90.008,2.6644987]
[1646040645901,24.5343,90.088,90.009,6.0]
[1646040646102,24.5343,90.088,90.009,8.74678921]
[1646040646305,24.5343,90.088,90.01,67.03]
[1646040646603,24.5343,90.088,90.013,2.92411494]
[1646040646806,24.5343,90.088,90.017,67.03]
[1646040647004,24.5343,90.088,90.018,8.73233261]
[1646040647404,24.5343,90.088,90.018,11.47912182]
[1646040647603,24.5343,90.088,90.019,2.74678921]
[1646040647804,24.5343,90.088,90.02,6.0]
[1646040648006,24.5343,90.088,90.021,67.03]
[1646040648204,24.5343,90.088,90.023,67.03]
[1646040648404,24.5343,90.088,90.026,2.36107311]
[1646040648603,24.5343,90.088,90.028,2.75269731]
[1646040648807,24.5343,90.088,90.03,54.02572744]
[1646040649005,24.5343,90.088,90.031,8.87781388]
[1646040649404,24.5343,90.088,90.031,11.62460309]
[1646040649606,24.5343,90.088,90.032,2.74678921]
[1646040649807,24.5343,90.088,90.033,6.0]
[1646040650208,24.4349,90.106,90.034,69.77678921]
[1646040650411,22.7952,90.105,90.037,2.38942656]
[1646040650611,22.7952,90.105,90.038,6.0]
[1646040650812,4.44,90.131,90.041,67.03]
[1646040651012,4.44,90.141,90.045,67.03]
[1646040651212,4.44,90.141,90.048,2.26653915]
[1646040651415,4.44,90.141,90.051,114.52916715]
[1646040651613,0.17502191,90.145,90.054,67.03]
[1646040651811,0.17502191,90.145,90.063,111.7]
[1646040652011,0.17502191,90.145,90.071,67.03]
[1646040652211,0.17502191,90.145,90.074,2.41726254]
[1646040652427,0.17502191,90.109,90.078,67.03]
[1646040652627,0.17502191,90.109,90.077,50.18854084]
[1646040652628,0.17502191,90.109,90.081,2.63206055]
[1646040652927,0.17502191,90.109,90.084,2.35286511]
[1646040653128,0.17502191,90.109,90.086,67.03]
[1646040653328,0.17502191,90.109,90.087,6.0]
[1646040653932,0.17502191,90.109,90.086,6.0]
[1646040654332,0.17502191,90.109,90.086,8.88759856]
[1646040654931,0.17502191,90.109,90.087,67.03]
[1646040655134,0.17502191,90.109,90.088,8.56542671]
[1646040655333,0.17502191,90.109,90.088,11.31221592]
[1646040657536,0.17502191,90.109,90.088,8.56542671]
[1646040657737,0.17502191,90.109,90.088,6.0]
[1646040657936,0.17502191,90.109,90.079,6.0]
[1646040658437,0.17502191,90.109,90.08,2.74678921]
[1646040659636,0.17502191,90.109,90.081,6.0]
[1646040662339,0.17502191,90.164,90.081,6.0]
[1646040665543,0.17502191,90.164,90.081,8.74678921]
[1646040667244,0.17502191,90.164,90.083,3.11241414]
[1646040667445,0.17502191,90.164,90.082,67.03]
[1646040667446,0.17502191,90.164,90.086,3.04311265]
[1646040667743,0.17502191,90.164,90.089,2.2585422]
[1646040667944,0.17502191,90.164,90.092,111.7]
[1646040668144,0.17502191,90.164,90.095,67.03]
[1646040668344,0.17502191,90.164,90.097,67.03]
[1646040668544,0.17502191,90.164,90.099,67.03]
[1646040668748,0.17502191,90.164,90.101,67.03]
[1646040668948,0.17502191,90.164,90.103,67.03]
[1646040669149,0.17502191,90.164,90.105,67.03]
[1646040669453,0.17502191,90.164,90.104,2.74678921]
[1646040669651,0.17502191,90.164,90.098,60.6620199]
[1646040673851,0.17502191,90.164,90.099,6.0]
[1646040674456,0.17502191,90.164,90.099,35.29052948]
[1646040676155,0.17502191,90.164,90.099,6.0]
[1646040677356,15.99,90.25,90.103,5.0]
[1646040677557,188.9,90.363,90.103,5.0]
[1646040677558,16.5432,90.328,90.171,0.17502191]
[1646040677756,3.07646383,90.331,90.183,67.03]
[1646040677956,128.86032524,90.333,90.191,67.03]
[1646040678155,127.0541,90.333,90.204,111.7]
[1646040678355,52.17204418,90.296,90.215,67.03]
[1646040678558,52.17204418,90.296,90.231,67.03]
[1646040678759,52.17204418,90.296,90.232,13.47728204]
[1646040679158,52.17204418,90.296,90.233,37.04743026]
[1646040679356,52.17204418,90.296,90.234,12.83384394]
[1646040679560,52.17204418,90.296,90.234,70.91222291]
[1646040679756,52.17204418,90.296,90.236,2.44887578]
[1646040679956,52.17204418,90.296,90.24,15.99]
[1646040680157,52.17204418,90.296,90.241,6.0]
[1646040680360,52.17204418,90.296,90.241,45.87241441]
[1646040680562,52.17204418,90.296,90.242,2.3775254]
[1646040680758,52.17204418,90.296,90.243,8.34159454]
[1646040680961,52.17204418,90.296,90.244,67.03]
[1646040681159,52.17204418,90.296,90.247,2.88864482]
[1646040681358,52.17204418,90.296,90.25,15.99]
[1646040681558,52.17204418,90.296,90.251,8.43411612]
[1646040681760,52.17204418,90.296,90.251,45.48154638]
[1646040681959,52.17204418,90.296,90.252,2.55949095]
[1646040682162,52.17204418,90.296,90.253,6.0]
[1646040682761,52.17204418,90.296,90.255,2.67717058]
[1646040683061,52.17204418,90.296,90.256,6.0]
[1646040683559,52.17204418,90.296,90.257,2.74678921]
[1646040683762,52.17204418,90.296,90.258,6.0]
[1646040684563,24.0777,90.343,90.258,6.0]
[1646040685964,1.49342657,90.342,90.259,34.30064105]
[1646040686164,111.7,90.342,90.26,2.43309955]
[1646040686365,113.30815176,90.342,90.26,2.43309955]
[1646040686566,1.22142765,90.297,90.247,2.80669614]
[1646040686864,1.22142765,90.297,90.248,6.0]